[Event "Titled Tuesday Blitz November 22 Early 2022"]
[White "Ovchinnikov, Vsevolod"]
[Black "Boraso, Alessio"]
[WhiteFideId "24176842"]
[BlackFideId "848077"]
[WhiteElo "2376"]
[BlackElo "2286"]
[Result "1-0"]
[Round "05"]
[TimeControl "180+1"]
[Date "2022.11.23"]
[WhiteClock "0:00:24"]
[BlackClock "0:00:01"]

1. d4 {[%clk 0:02:56]}  Nf6 {[%clk 0:02:59]} 2. c4 {[%clk 0:02:56]}  g6 {[%clk 0:03:00]} 3. Nc3 {[%clk 0:02:56]}  Bg7 {[%clk 0:03:01]} 4. e4 {[%clk 0:02:56]}  O-O {[%clk 0:03:01]} 5. Nf3 {[%clk 0:02:57]}  d6 {[%clk 0:03:02]} 6. h3 {[%clk 0:02:57]}  Na6 {[%clk 0:03:00]} 7. Be3 {[%clk 0:02:56]}  e5 {[%clk 0:02:54]} 8. d5 {[%clk 0:02:56]}  Nh5 {[%clk 0:02:54]} 9. g3 {[%clk 0:02:56]}  f5 {[%clk 0:02:39]} 10. exf5 {[%clk 0:02:56]}  Rxf5 {[%clk 0:02:25]} 11. g4 {[%clk 0:02:41]}  e4 {[%clk 0:01:07]} 12. Nd4 {[%clk 0:01:58]}  Rf4 {[%clk 0:00:28]} 13. gxh5 {[%clk 0:01:55]}  Qh4 {[%clk 0:00:29]} 14. hxg6 {[%clk 0:01:30]}  Bd7 {[%clk 0:00:29]} 15. gxh7+ {[%clk 0:01:25]}  Kh8 {[%clk 0:00:29]} 16. Qd2 {[%clk 0:01:23]}  Raf8 {[%clk 0:00:24]} 17. Rh2 {[%clk 0:00:43]}  Be5 {[%clk 0:00:21]} 18. Rg2 {[%clk 0:00:39]}  Kxh7 {[%clk 0:00:18]} 19. Ne6 {[%clk 0:00:35]}  Bxe6 {[%clk 0:00:17]} 20. dxe6 {[%clk 0:00:36]}  Nc5 {[%clk 0:00:15]} 21. O-O-O {[%clk 0:00:34]}  Nxe6 {[%clk 0:00:12]} 22. Kb1 {[%clk 0:00:33]}  Qf6 {[%clk 0:00:10]} 23. Nd5 {[%clk 0:00:30]}  Qf5 {[%clk 0:00:09]} 24. Nxf4 {[%clk 0:00:29]}  Nxf4 {[%clk 0:00:09]} 25. Rg4 {[%clk 0:00:28]}  Ng6 {[%clk 0:00:07]} 26. Qc2 {[%clk 0:00:26]}  Bg7 {[%clk 0:00:07]} 27. Qxe4 {[%clk 0:00:25]}  Qh5 {[%clk 0:00:05]} 28. Bd3 {[%clk 0:00:24]}  Rf6 {[%clk 0:00:04]} 29. Rdg1 {[%clk 0:00:24]}  Qe5 {[%clk 0:00:01]} 1-0


[Site "https://www.chess.com"]

[Event "Titled Tuesday Blitz November 22 Early 2022"]
[White "Piesik, Piotr"]
[Black "Ozen, Bahadir"]
[WhiteFideId "1136194"]
[BlackFideId "6337058"]
[WhiteElo "2316"]
[BlackElo "2503"]
[Result "0-1"]
[Round "05"]
[TimeControl "180+1"]
[Date "2022.11.22"]
[WhiteClock "0:01:13"]
[BlackClock "0:01:01"]

1. Nf3 {[%clk 0:02:32]}  Nf6 {[%clk 0:02:48]} 2. g3 {[%clk 0:02:32]}  d6 {[%clk 0:02:47]} 3. Bg2 {[%clk 0:02:33]}  e5 {[%clk 0:02:47]} 4. O-O {[%clk 0:02:32]}  Be7 {[%clk 0:02:48]} 5. d4 {[%clk 0:02:32]}  Nbd7 {[%clk 0:02:47]} 6. dxe5 {[%clk 0:02:32]}  dxe5 {[%clk 0:02:47]} 7. Nbd2 {[%clk 0:02:33]}  c6 {[%clk 0:02:42]} 8. e4 {[%clk 0:02:33]}  O-O {[%clk 0:02:40]} 9. a4 {[%clk 0:02:32]}  Qc7 {[%clk 0:02:32]} 10. b3 {[%clk 0:02:32]}  b5 {[%clk 0:02:30]} 11. Bb2 {[%clk 0:02:25]}  Bb7 {[%clk 0:02:24]} 12. Qe2 {[%clk 0:02:22]}  a6 {[%clk 0:02:24]} 13. Rfd1 {[%clk 0:02:22]}  Rfe8 {[%clk 0:02:24]} 14. Nf1 {[%clk 0:02:19]}  Bf8 {[%clk 0:02:21]} 15. N3d2 {[%clk 0:02:15]}  Nc5 {[%clk 0:02:18]} 16. Ne3 {[%clk 0:02:15]}  Rad8 {[%clk 0:02:04]} 17. Ng4 {[%clk 0:02:07]}  Nxg4 {[%clk 0:02:00]} 18. Qxg4 {[%clk 0:02:08]}  Bc8 {[%clk 0:01:43]} 19. Qe2 {[%clk 0:02:07]}  f6 {[%clk 0:01:40]} 20. Bc3 {[%clk 0:02:07]}  Qf7 {[%clk 0:01:32]} 21. Nf1 {[%clk 0:01:58]}  Ne6 {[%clk 0:01:30]} 22. axb5 {[%clk 0:01:52]}  axb5 {[%clk 0:01:30]} 23. Rxd8 {[%clk 0:01:46]}  Rxd8 {[%clk 0:01:30]} 24. Ne3 {[%clk 0:01:46]}  Nd4 {[%clk 0:01:29]} 25. Qf1 {[%clk 0:01:39]}  Be6 {[%clk 0:01:23]} 26. f3 {[%clk 0:01:31]}  Bc5 {[%clk 0:01:22]} 27. Kh1 {[%clk 0:01:26]}  Nxb3 {[%clk 0:01:20]} 28. cxb3 {[%clk 0:01:24]}  Bxe3 {[%clk 0:01:21]} 29. Ra6 {[%clk 0:01:20]}  Qb7 {[%clk 0:01:12]} 30. Qa1 {[%clk 0:01:15]}  Qxa6 {[%clk 0:01:00]} 31. Qxa6 {[%clk 0:01:13]}  Rd1+ {[%clk 0:01:01]} 0-1


[Site "https://www.chess.com"]

[Event "Titled Tuesday Blitz November 22 Early 2022"]
[White "Pranav Anand"]
[Black "Ferreira, Vitor Hugo Vieira"]
[WhiteFideId "46626786"]
[BlackFideId "2119765"]
[WhiteElo "2402"]
[BlackElo "2168"]
[Result "0-1"]
[Round "05"]
[TimeControl "180+1"]
[Date "2022.11.23"]
[WhiteClock "0:01:14"]
[BlackClock "0:01:44"]

1. Nf3 {[%clk 0:03:00]}  Nf6 {[%clk 0:02:59]} 2. c4 {[%clk 0:03:01]}  c6 {[%clk 0:02:57]} 3. e3 {[%clk 0:02:59]}  d5 {[%clk 0:02:58]} 4. b3 {[%clk 0:03:00]}  e6 {[%clk 0:02:57]} 5. Bb2 {[%clk 0:03:01]}  Bd6 {[%clk 0:02:57]} 6. Be2 {[%clk 0:03:00]}  O-O {[%clk 0:02:57]} 7. O-O {[%clk 0:03:01]}  Re8 {[%clk 0:02:57]} 8. d4 {[%clk 0:03:01]}  Nbd7 {[%clk 0:02:55]} 9. Nc3 {[%clk 0:03:00]}  a6 {[%clk 0:02:54]} 10. Qc2 {[%clk 0:03:00]}  Qe7 {[%clk 0:02:49]} 11. Rad1 {[%clk 0:02:49]}  dxc4 {[%clk 0:02:46]} 12. bxc4 {[%clk 0:02:48]}  e5 {[%clk 0:02:47]} 13. h3 {[%clk 0:02:47]}  e4 {[%clk 0:02:43]} 14. Nd2 {[%clk 0:02:42]}  Nf8 {[%clk 0:02:42]} 15. Na4 {[%clk 0:02:32]}  Bf5 {[%clk 0:02:40]} 16. Nb6 {[%clk 0:02:24]}  Rad8 {[%clk 0:02:39]} 17. d5 {[%clk 0:02:14]}  c5 {[%clk 0:02:36]} 18. Bc3 {[%clk 0:02:09]}  Bb8 {[%clk 0:02:32]} 19. g3 {[%clk 0:01:26]}  Bxh3 {[%clk 0:02:29]} 20. Rfe1 {[%clk 0:01:27]}  Ng4 {[%clk 0:02:20]} 21. Qb2 {[%clk 0:01:21]}  Nxe3 {[%clk 0:02:09]} 22. fxe3 {[%clk 0:01:15]}  Qg5 {[%clk 0:01:50]} 23. Nf1 {[%clk 0:01:14]}  Bxg3 {[%clk 0:01:44]} 0-1


[Site "https://www.chess.com"]

[Event "Titled Tuesday Blitz November 22 Early 2022"]
[White "Prithu Gupta"]
[Black "Osmak, Yuliia"]
[WhiteFideId "46618546"]
[BlackFideId "14101602"]
[WhiteElo "2344"]
[BlackElo "2328"]
[Result "0-1"]
[Round "05"]
[TimeControl "180+1"]
[Date "2022.11.23"]
[WhiteClock "0:00:07"]
[BlackClock "0:00:08"]

1. c4 {[%clk 0:03:00]}  e5 {[%clk 0:02:51]} 2. Nc3 {[%clk 0:03:00]}  Nf6 {[%clk 0:02:49]} 3. Nf3 {[%clk 0:02:59]}  e4 {[%clk 0:02:47]} 4. Ng5 {[%clk 0:02:58]}  c6 {[%clk 0:02:47]} 5. Ngxe4 {[%clk 0:02:55]}  Nxe4 {[%clk 0:02:48]} 6. Nxe4 {[%clk 0:02:56]}  d5 {[%clk 0:02:48]} 7. Nc3 {[%clk 0:02:54]}  d4 {[%clk 0:02:42]} 8. Nb1 {[%clk 0:02:54]}  c5 {[%clk 0:02:38]} 9. e3 {[%clk 0:02:54]}  Nc6 {[%clk 0:02:37]} 10. Be2 {[%clk 0:02:51]}  d3 {[%clk 0:02:32]} 11. Bf3 {[%clk 0:02:51]}  Nb4 {[%clk 0:02:16]} 12. Na3 {[%clk 0:02:50]}  Be7 {[%clk 0:02:01]} 13. O-O {[%clk 0:02:50]}  O-O {[%clk 0:02:00]} 14. Nb5 {[%clk 0:02:50]}  Be6 {[%clk 0:01:48]} 15. b3 {[%clk 0:02:50]}  Bf6 {[%clk 0:01:46]} 16. Rb1 {[%clk 0:02:48]}  Nxa2 {[%clk 0:01:46]} 17. Bxb7 {[%clk 0:02:22]}  Rb8 {[%clk 0:01:45]} 18. Qf3 {[%clk 0:02:22]}  a6 {[%clk 0:01:40]} 19. Bxa6 {[%clk 0:02:17]}  Qb6 {[%clk 0:01:40]} 20. Ba3 {[%clk 0:01:28]}  Nb4 {[%clk 0:01:29]} 21. Bxb4 {[%clk 0:01:19]}  cxb4 {[%clk 0:01:30]} 22. Nd4 {[%clk 0:01:19]}  Qxa6 {[%clk 0:01:22]} 23. Ra1 {[%clk 0:01:11]}  Qb6 {[%clk 0:01:20]} 24. Qe4 {[%clk 0:01:10]}  Rbd8 {[%clk 0:01:13]} 25. Nxe6 {[%clk 0:01:05]}  Qxe6 {[%clk 0:01:12]} 26. Qxe6 {[%clk 0:01:05]}  fxe6 {[%clk 0:01:12]} 27. Ra4 {[%clk 0:01:05]}  Ra8 {[%clk 0:01:01]} 28. Rxb4 {[%clk 0:01:03]}  Ra2 {[%clk 0:01:01]} 29. Rd1 {[%clk 0:01:02]}  Rfa8 {[%clk 0:00:58]} 30. f4 {[%clk 0:00:56]}  Ra1 {[%clk 0:00:55]} 31. Rxa1 {[%clk 0:00:54]}  Rxa1+ {[%clk 0:00:56]} 32. Kf2 {[%clk 0:00:55]}  Rd1 {[%clk 0:00:54]} 33. Rb8+ {[%clk 0:00:53]}  Kf7 {[%clk 0:00:53]} 34. Rb7+ {[%clk 0:00:54]}  Kg6 {[%clk 0:00:53]} 35. Rd7 {[%clk 0:00:52]}  Rxd2+ {[%clk 0:00:52]} 36. Kf3 {[%clk 0:00:52]}  Rd1 {[%clk 0:00:44]} 37. c5 {[%clk 0:00:50]}  d2 {[%clk 0:00:37]} 38. c6 {[%clk 0:00:37]}  Rc1 {[%clk 0:00:34]} 39. Rxd2 {[%clk 0:00:36]}  Rxc6 {[%clk 0:00:35]} 40. Rd3 {[%clk 0:00:34]}  Rc3 {[%clk 0:00:34]} 41. Rxc3 {[%clk 0:00:32]}  Bxc3 {[%clk 0:00:35]} 42. e4 {[%clk 0:00:31]}  Kf6 {[%clk 0:00:32]} 43. e5+ {[%clk 0:00:30]}  Ke7 {[%clk 0:00:26]} 44. Ke4 {[%clk 0:00:27]}  h5 {[%clk 0:00:20]} 45. f5 {[%clk 0:00:24]}  Kf7 {[%clk 0:00:18]} 46. g3 {[%clk 0:00:17]}  Bd2 {[%clk 0:00:12]} 47. h3 {[%clk 0:00:15]}  exf5+ {[%clk 0:00:11]} 48. Kxf5 {[%clk 0:00:15]}  g6+ {[%clk 0:00:12]} 49. Ke4 {[%clk 0:00:14]}  Ke6 {[%clk 0:00:13]} 50. g4 {[%clk 0:00:08]}  hxg4 {[%clk 0:00:12]} 51. hxg4 {[%clk 0:00:08]}  g5 {[%clk 0:00:11]} 52. Kd4 {[%clk 0:00:08]}  Bf4 {[%clk 0:00:11]} 53. b4 {[%clk 0:00:07]}  Bxe5+ {[%clk 0:00:12]} 54. Ke4 {[%clk 0:00:08]}  Bb8 {[%clk 0:00:12]} 55. b5 {[%clk 0:00:07]}  Bc7 {[%clk 0:00:09]} 56. Kd4 {[%clk 0:00:06]}  Bb6+ {[%clk 0:00:08]} 57. Ke4 {[%clk 0:00:07]}  Ba7 {[%clk 0:00:08]} 0-1


[Site "https://www.chess.com"]

[Event "Titled Tuesday Blitz November 22 Early 2022"]
[White "Ravot, Sylvain"]
[Black "Garv Gaur"]
[WhiteFideId "627763"]
[BlackFideId "45030839"]
[WhiteElo "2195"]
[BlackElo "1960"]
[Result "0-1"]
[Round "05"]
[TimeControl "180+1"]
[Date "2022.11.23"]
[WhiteClock "0:00:04"]
[BlackClock "0:01:49"]

1. e4 {[%clk 0:02:54]}  c6 {[%clk 0:02:58]} 2. d4 {[%clk 0:02:53]}  d5 {[%clk 0:02:56]} 3. exd5 {[%clk 0:02:52]}  cxd5 {[%clk 0:02:55]} 4. Bd3 {[%clk 0:02:52]}  Nc6 {[%clk 0:02:54]} 5. c3 {[%clk 0:02:45]}  Qc7 {[%clk 0:02:54]} 6. Ne2 {[%clk 0:02:45]}  Bg4 {[%clk 0:02:53]} 7. O-O {[%clk 0:02:44]}  e6 {[%clk 0:02:51]} 8. Qe1 {[%clk 0:02:44]}  Nf6 {[%clk 0:02:50]} 9. Bg5 {[%clk 0:02:41]}  Bh5 {[%clk 0:02:45]} 10. Nf4 {[%clk 0:01:43]}  Bg6 {[%clk 0:02:33]} 11. Nxg6 {[%clk 0:01:40]}  hxg6 {[%clk 0:02:33]} 12. g3 {[%clk 0:01:39]}  Bd6 {[%clk 0:02:30]} 13. Nd2 {[%clk 0:01:30]}  a6 {[%clk 0:02:13]} 14. a4 {[%clk 0:01:28]}  Ne7 {[%clk 0:02:13]} 15. f4 {[%clk 0:01:06]}  Nf5 {[%clk 0:02:03]} 16. Nf3 {[%clk 0:01:04]}  Ng4 {[%clk 0:01:59]} 17. Bxf5 {[%clk 0:00:31]}  gxf5 {[%clk 0:02:00]} 18. Kg2 {[%clk 0:00:14]}  Nf6 {[%clk 0:01:54]} 19. Bxf6 {[%clk 0:00:13]}  gxf6 {[%clk 0:01:55]} 20. Qe2 {[%clk 0:00:10]}  Kd7 {[%clk 0:01:51]} 21. Rae1 {[%clk 0:00:09]}  Rag8 {[%clk 0:01:51]} 22. Qf2 {[%clk 0:00:08]}  Bxf4 {[%clk 0:01:50]} 23. Ng1 {[%clk 0:00:06]}  Rxh2+ {[%clk 0:01:49]} 24. Kxh2 {[%clk 0:00:04]}  Bxg3+ {[%clk 0:01:49]} 0-1


[Site "https://www.chess.com"]

[Event "Titled Tuesday Blitz November 22 Early 2022"]
[White "Ronka, Erik"]
[Black "Martin, Lewis"]
[WhiteFideId "505080"]
[BlackFideId "410551"]
[WhiteElo "2264"]
[BlackElo "2145"]
[Result "1-0"]
[Round "05"]
[TimeControl "180+1"]
[Date "2022.11.23"]
[WhiteClock "0:00:08"]
[BlackClock "0:00:02"]

1. e4 {[%clk 0:03:00]}  c5 {[%clk 0:02:59]} 2. Nf3 {[%clk 0:02:57]}  d6 {[%clk 0:02:59]} 3. d4 {[%clk 0:02:58]}  cxd4 {[%clk 0:03:00]} 4. Nxd4 {[%clk 0:02:58]}  Nf6 {[%clk 0:03:00]} 5. Nc3 {[%clk 0:02:59]}  a6 {[%clk 0:03:00]} 6. Rg1 {[%clk 0:02:54]}  e5 {[%clk 0:02:57]} 7. Nb3 {[%clk 0:02:55]}  Be6 {[%clk 0:02:46]} 8. g4 {[%clk 0:02:54]}  Be7 {[%clk 0:02:28]} 9. g5 {[%clk 0:02:47]}  Nfd7 {[%clk 0:02:26]} 10. Be3 {[%clk 0:02:43]}  Nc6 {[%clk 0:02:20]} 11. Nd5 {[%clk 0:02:23]}  Nc5 {[%clk 0:02:01]} 12. f3 {[%clk 0:01:49]}  O-O {[%clk 0:01:52]} 13. Qd2 {[%clk 0:01:44]}  Rc8 {[%clk 0:01:46]} 14. O-O-O {[%clk 0:01:42]}  Bxd5 {[%clk 0:01:30]} 15. exd5 {[%clk 0:01:36]}  Nxb3+ {[%clk 0:01:25]} 16. axb3 {[%clk 0:01:37]}  Na5 {[%clk 0:01:23]} 17. Kb1 {[%clk 0:01:34]}  b5 {[%clk 0:01:19]} 18. h4 {[%clk 0:01:27]}  Nb7 {[%clk 0:01:12]} 19. Bh3 {[%clk 0:01:17]}  Ra8 {[%clk 0:01:11]} 20. h5 {[%clk 0:01:13]}  f5 {[%clk 0:00:58]} 21. gxf6 {[%clk 0:00:45]}  Bxf6 {[%clk 0:00:58]} 22. Be6+ {[%clk 0:00:45]}  Kh8 {[%clk 0:00:57]} 23. Qd3 {[%clk 0:00:25]}  Nc5 {[%clk 0:00:53]} 24. Bxc5 {[%clk 0:00:24]}  dxc5 {[%clk 0:00:54]} 25. Bf5 {[%clk 0:00:24]}  h6 {[%clk 0:00:47]} 26. Qe2 {[%clk 0:00:20]}  Qd6 {[%clk 0:00:34]} 27. Bd3 {[%clk 0:00:19]}  Kg8 {[%clk 0:00:16]} 28. Qe4 {[%clk 0:00:19]}  Kf7 {[%clk 0:00:16]} 29. Rde1 {[%clk 0:00:18]}  Rfd8 {[%clk 0:00:10]} 30. Qg6+ {[%clk 0:00:17]}  Kf8 {[%clk 0:00:10]} 31. f4 {[%clk 0:00:16]}  Ra7 {[%clk 0:00:08]} 32. fxe5 {[%clk 0:00:15]}  Bxe5 {[%clk 0:00:08]} 33. Ref1+ {[%clk 0:00:14]}  Bf6 {[%clk 0:00:08]} 34. Qh7 {[%clk 0:00:12]}  Qxd5 {[%clk 0:00:07]} 35. Qh8+ {[%clk 0:00:10]}  Qg8 {[%clk 0:00:07]} 36. Qxg8+ {[%clk 0:00:08]}  Kxg8 {[%clk 0:00:06]} 37. Rxf6 {[%clk 0:00:09]}  c4 {[%clk 0:00:04]} 38. bxc4 {[%clk 0:00:09]}  bxc4 {[%clk 0:00:04]} 39. Bxc4+ {[%clk 0:00:09]}  Kh8 {[%clk 0:00:03]} 40. Rfg6 {[%clk 0:00:09]}  Rd4 {[%clk 0:00:02]} 41. Bd3 {[%clk 0:00:09]}  a5 {[%clk 0:00:02]} 42. b3 {[%clk 0:00:10]}  Rh4 {[%clk 0:00:02]} 43. Rb6 {[%clk 0:00:08]}  Rxh5 {[%clk 0:00:02]} 44. Rb8# {[%clk 0:00:08]} 1-0


[Site "https://www.chess.com"]

[Event "Titled Tuesday Blitz November 22 Early 2022"]
[White "Roque Sola, Gisela"]
[Black "Vifleemskaia, Svetlana"]
[WhiteFideId "5120241"]
[BlackFideId "4129490"]
[WhiteElo "1961"]
[BlackElo "1929"]
[Result "1-0"]
[Round "05"]
[TimeControl "180+1"]
[Date "2022.11.23"]
[WhiteClock "0:00:17"]
[BlackClock "0:00:02"]

1. c4 {[%clk 0:02:55]}  c5 {[%clk 0:02:32]} 2. Nc3 {[%clk 0:02:54]}  Nf6 {[%clk 0:02:31]} 3. Nf3 {[%clk 0:02:54]}  d5 {[%clk 0:02:31]} 4. cxd5 {[%clk 0:02:53]}  Nxd5 {[%clk 0:02:32]} 5. Nxd5 {[%clk 0:02:49]}  Qxd5 {[%clk 0:02:31]} 6. g3 {[%clk 0:02:49]}  Nc6 {[%clk 0:02:28]} 7. Bg2 {[%clk 0:02:49]}  e5 {[%clk 0:02:27]} 8. d3 {[%clk 0:02:46]}  Be7 {[%clk 0:02:27]} 9. O-O {[%clk 0:02:46]}  O-O {[%clk 0:02:26]} 10. Be3 {[%clk 0:02:36]}  Qd6 {[%clk 0:02:12]} 11. Rc1 {[%clk 0:02:34]}  b6 {[%clk 0:02:12]} 12. Nxe5 {[%clk 0:02:28]}  Qxe5 {[%clk 0:01:58]} 13. Bxc6 {[%clk 0:02:26]}  Bh3 {[%clk 0:01:58]} 14. Re1 {[%clk 0:02:20]}  Rac8 {[%clk 0:01:56]} 15. Bh1 {[%clk 0:02:19]}  Qxb2 {[%clk 0:01:55]} 16. Qa4 {[%clk 0:01:48]}  Rc7 {[%clk 0:01:27]} 17. Bf4 {[%clk 0:01:44]}  Rd7 {[%clk 0:01:26]} 18. Bc6 {[%clk 0:01:08]}  Rd4 {[%clk 0:01:22]} 19. Qxa7 {[%clk 0:01:02]}  Bd8 {[%clk 0:01:11]} 20. Be5 {[%clk 0:00:57]}  Qb4 {[%clk 0:00:30]} 21. Bxd4 {[%clk 0:00:54]}  Qxd4 {[%clk 0:00:31]} 22. Bh1 {[%clk 0:00:49]}  h5 {[%clk 0:00:26]} 23. Qb7 {[%clk 0:00:47]}  Qb2 {[%clk 0:00:19]} 24. Qd5 {[%clk 0:00:43]}  g6 {[%clk 0:00:18]} 25. Qb3 {[%clk 0:00:43]}  Qd4 {[%clk 0:00:17]} 26. e3 {[%clk 0:00:41]}  Qe5 {[%clk 0:00:15]} 27. Qc3 {[%clk 0:00:38]}  Qd6 {[%clk 0:00:12]} 28. d4 {[%clk 0:00:35]}  cxd4 {[%clk 0:00:05]} 29. Qxd4 {[%clk 0:00:35]}  Qa3 {[%clk 0:00:04]} 30. Qd2 {[%clk 0:00:26]}  Qe7 {[%clk 0:00:04]} 31. Rc2 {[%clk 0:00:21]}  Qg5 {[%clk 0:00:04]} 32. Rec1 {[%clk 0:00:20]}  Bf6 {[%clk 0:00:03]} 33. Qd5 {[%clk 0:00:18]}  Qg4 {[%clk 0:00:02]} 34. Qf3 {[%clk 0:00:17]}  Qe6 {[%clk 0:00:02]} 35. Rc6 {[%clk 0:00:17]} 1-0


[Site "https://www.chess.com"]

[Event "Titled Tuesday Blitz November 22 Early 2022"]
[White "Rottenwohrer Suarez, Juan"]
[Black "Kuchava, Ana"]
[WhiteFideId "32068182"]
[BlackFideId "13605348"]
[WhiteElo "2195"]
[BlackElo "2001"]
[Result "1-0"]
[Round "05"]
[TimeControl "180+1"]
[Date "2022.11.23"]
[WhiteClock "0:00:38"]
[BlackClock "0:00:02"]

1. c4 {[%clk 0:03:00]}  e6 {[%clk 0:02:58]} 2. d4 {[%clk 0:02:48]}  d5 {[%clk 0:02:44]} 3. Nc3 {[%clk 0:02:43]}  Be7 {[%clk 0:02:44]} 4. cxd5 {[%clk 0:02:41]}  e5 {[%clk 0:02:43]} 5. dxe5 {[%clk 0:02:40]}  f6 {[%clk 0:01:51]} 6. e6 {[%clk 0:02:31]}  c6 {[%clk 0:01:44]} 7. e4 {[%clk 0:02:23]}  a6 {[%clk 0:01:29]} 8. Bd3 {[%clk 0:02:12]}  b5 {[%clk 0:01:09]} 9. Nf3 {[%clk 0:01:55]}  b4 {[%clk 0:01:07]} 10. Na4 {[%clk 0:01:53]}  cxd5 {[%clk 0:01:07]} 11. exd5 {[%clk 0:01:53]}  Bb7 {[%clk 0:01:00]} 12. Bc4 {[%clk 0:01:18]}  f5 {[%clk 0:00:22]} 13. Ne5 {[%clk 0:01:12]}  Nf6 {[%clk 0:00:21]} 14. Nf7 {[%clk 0:01:12]}  Qa5 {[%clk 0:00:19]} 15. O-O {[%clk 0:00:59]}  O-O {[%clk 0:00:16]} 16. d6 {[%clk 0:00:57]}  Bxd6 {[%clk 0:00:07]} 17. Nxd6 {[%clk 0:00:54]}  Bc6 {[%clk 0:00:05]} 18. e7+ {[%clk 0:00:54]}  Nd5 {[%clk 0:00:02]} 19. exf8=R+ {[%clk 0:00:42]}  Kxf8 {[%clk 0:00:03]} 20. Bxd5 {[%clk 0:00:42]}  Bxd5 {[%clk 0:00:03]} 21. Nb6 {[%clk 0:00:40]}  Qxb6 {[%clk 0:00:02]} 22. Qxd5 {[%clk 0:00:39]}  Ra7 {[%clk 0:00:02]} 23. Be3 {[%clk 0:00:38]} 1-0


[Site "https://www.chess.com"]

[Event "Titled Tuesday Blitz November 22 Early 2022"]
[White "Sadubayev, Airat"]
[Black "Savic, Miroslav"]
[WhiteFideId "13713264"]
[BlackFideId "14508494"]
[WhiteElo "2160"]
[BlackElo "2209"]
[Result "0-1"]
[Round "05"]
[TimeControl "180+1"]
[Date "2022.11.23"]
[WhiteClock "0:00:01"]
[BlackClock "0:00:31"]

1. d4 {[%clk 0:03:00]}  Nf6 {[%clk 0:02:51]} 2. c4 {[%clk 0:03:00]}  e6 {[%clk 0:02:47]} 3. Nf3 {[%clk 0:03:00]}  Bb4+ {[%clk 0:02:47]} 4. Bd2 {[%clk 0:02:59]}  a5 {[%clk 0:02:47]} 5. g3 {[%clk 0:02:57]}  b6 {[%clk 0:02:46]} 6. Bg2 {[%clk 0:02:56]}  Bb7 {[%clk 0:02:47]} 7. O-O {[%clk 0:02:55]}  Bxd2 {[%clk 0:02:47]} 8. Qxd2 {[%clk 0:02:42]}  O-O {[%clk 0:02:45]} 9. Nc3 {[%clk 0:02:40]}  Ne4 {[%clk 0:02:34]} 10. Nxe4 {[%clk 0:02:17]}  Bxe4 {[%clk 0:02:30]} 11. d5 {[%clk 0:02:16]}  Bxf3 {[%clk 0:02:22]} 12. Bxf3 {[%clk 0:02:12]}  e5 {[%clk 0:02:22]} 13. d6 {[%clk 0:02:01]}  c6 {[%clk 0:02:22]} 14. Qc3 {[%clk 0:01:54]}  Qf6 {[%clk 0:02:16]} 15. Rad1 {[%clk 0:01:46]}  Na6 {[%clk 0:02:15]} 16. a3 {[%clk 0:01:38]}  a4 {[%clk 0:02:15]} 17. Bg4 {[%clk 0:01:25]}  Nc5 {[%clk 0:02:12]} 18. Qc2 {[%clk 0:01:16]}  g6 {[%clk 0:02:07]} 19. Bh3 {[%clk 0:01:08]}  Qg7 {[%clk 0:01:58]} 20. Qc3 {[%clk 0:00:57]}  f5 {[%clk 0:01:56]} 21. Qd2 {[%clk 0:00:45]}  Rae8 {[%clk 0:01:43]} 22. Qb4 {[%clk 0:00:42]}  Rb8 {[%clk 0:01:38]} 23. Rd2 {[%clk 0:00:31]}  Ne4 {[%clk 0:01:32]} 24. Rdd1 {[%clk 0:00:27]}  b5 {[%clk 0:01:29]} 25. Bg2 {[%clk 0:00:21]}  Nf6 {[%clk 0:01:19]} 26. cxb5 {[%clk 0:00:17]}  Rxb5 {[%clk 0:01:18]} 27. Qxa4 {[%clk 0:00:17]}  Rxb2 {[%clk 0:01:18]} 28. Qa7 {[%clk 0:00:15]}  e4 {[%clk 0:01:06]} 29. e3 {[%clk 0:00:14]}  Rfb8 {[%clk 0:01:02]} 30. Qd4 {[%clk 0:00:11]}  Nd5 {[%clk 0:00:56]} 31. Qc4 {[%clk 0:00:09]}  Qc3 {[%clk 0:00:53]} 32. Qxc3 {[%clk 0:00:06]}  Nxc3 {[%clk 0:00:52]} 33. Ra1 {[%clk 0:00:04]}  Ra8 {[%clk 0:00:38]} 34. h4 {[%clk 0:00:04]}  h5 {[%clk 0:00:36]} 35. Kh2 {[%clk 0:00:03]}  Kf7 {[%clk 0:00:36]} 36. Rfc1 {[%clk 0:00:03]}  Nd5 {[%clk 0:00:34]} 37. Rf1 {[%clk 0:00:02]}  Ke6 {[%clk 0:00:34]} 38. a4 {[%clk 0:00:02]}  Kxd6 {[%clk 0:00:33]} 39. a5 {[%clk 0:00:01]}  Rb5 {[%clk 0:00:31]} 0-1


[Site "https://www.chess.com"]